lending/lending_fUSD_20240111
["ID","MTS","AMOUNT","RATE_DAILY","PERIOD"]
[311243575,1704991842934,-1294.74,0.000394,3]
[311243577,1704991842943,-1294.74,0.000394,3]
[311243579,1704991842952,-1294.74,0.000394,3]
[311243581,1704991842961,-1294.74,0.000394,3]
[311243583,1704991842971,-1294.74,0.000394,3]
[311243585,1704991842981,-1294.74,0.000394,3]
[311243586,1704991842990,-1294.74,0.000394,3]
[311243589,1704991842999,-1294.74,0.000394,3]
[311243591,1704991843008,-1294.74,0.000394,3]
[311243593,1704991843017,-3237.8087229,0.000394,4]
[311243595,1704991843027,-4548.95757275,0.000395,4]
[311243597,1704991843037,-198.285519,0.00039582,2]
[311243599,1704991843046,-236.970236,0.00039582,2]
[311243600,1704991843055,-155.857234,0.00039582,2]
[311243603,1704991843066,-162.333794,0.00039582,2]
[311243605,1704991843075,-588.553653,0.00039582,2]
[311243606,1704991843085,-809.275204,0.00039582,2]
[311243608,1704991843094,-179.629477,0.00039582,2]
[311243611,1704991843103,-588.553653,0.00039582,2]
[311243612,1704991843113,-773.190221,0.00039582,2]
[311243614,1704991843122,-1278.28133876,0.00039603,2]
[311243616,1704991843131,-7695.98805782,0.00039606,7]
[311243618,1704991843140,-2395.19672945,0.00039606,7]
[311243620,1704991843149,-2496.88162073,0.00039606,7]
[311243622,1704991843158,-13750.0,0.00039606,8]
[311243624,1704991843168,-6401.52097567,0.00039606,8]
[311243626,1704991843177,-320.07604879,0.00039606,3]
[311243628,1704991843186,-3058.95911926,0.00039606,8]
[311243631,1704991843195,-6564.15920431,0.00039606,7]
[311243633,1704991843204,-3282.07960216,0.00039606,7]
[311243634,1704991843214,-962.50827515,0.00039606,3]
[311243636,1704991843223,-155.04448703,0.00039613,7]
[311243638,1704991843232,-1000.0,0.00039621,2]
[311243640,1704991843241,-156.47,0.00039621,2]
[311243642,1704991843250,-152.98731987,0.00039672,5]
[311243644,1704991843259,-4000.0,0.000397,2]
[311243646,1704991843269,-8860.26,0.000397,30]
[311243648,1704991843281,-8860.26,0.000397,2]
[311243650,1704991843291,-428.28052565,0.000398,4]
[311243652,1704991843301,-6097.18,0.000398,7]
[311243654,1704991843311,-1593.56,0.000398,7]
[311243656,1704991843322,-627.97384558,0.0003985,2]
[311243658,1704991843334,-2008.58048886,0.0003985,2]
[311243660,1704991843344,-1023.76166173,0.0003985,2]
[311243662,1704991843353,-395140.82,0.000399,2]
[311243664,1704991843363,-1000.0,0.000399,2]
[311243666,1704991843372,-789.0,0.000399,30]
[311243668,1704991843381,-445.85960008,0.000399,2]
[311243670,1704991843391,-200.0,0.00039942,15]
[311243671,1704991843400,-3096.92218861,0.00039942,15]
[311243672,1704991843409,-5515.46126604,0.00039942,15]
[311243673,1704991843418,-3096.92218861,0.00039943,15]
[311243674,1704991843427,-355.1371824,0.00039943,15]
[311243675,1704991843437,-2757.73063301,0.00039944,15]
[311243676,1704991843446,-279.03635758,0.00039944,15]
[311243677,1704991843455,-3096.92218861,0.00039944,15]
[311243678,1704991843465,-4866.59201068,0.00039945,15]
[311243680,1704991843474,-1769.66982204,0.00039945,15]
[311243681,1704991843483,-591.34268307,0.00039947,15]
[311243683,1704991843492,-5515.46126604,0.00039948,15]
[311243685,1704991843501,-4727.53822802,0.00039949,15]
[311243687,1704991843510,-279.03635758,0.0003995,15]
[311243689,1704991843521,-1034.84969544,0.00039951,10]
[311243691,1704991843532,-156.47,0.00039951,2]
[311243693,1704991843541,-8516.53601877,0.00039952,10]
[311243695,1704991843551,-508.81235977,0.00039952,10]
[311243697,1704991843559,-378.3606928,0.00039952,10]
[311243699,1704991843568,-4826.02860784,0.00039953,10]
[311243701,1704991843578,-1769.66982204,0.00039953,15]
[311243703,1704991843587,-200.0,0.00039953,10]
[311243705,1704991843596,-8516.53601878,0.00039953,10]
[311243707,1704991843605,-355.1371824,0.00039953,15]
[311243708,1704991843615,-8516.53601877,0.00039954,10]
[311243709,1704991843624,-508.81235977,0.00039954,10]
[311243710,1704991843633,-508.81235977,0.00039954,10]
[311243711,1704991843643,-508.81235977,0.00039954,10]
[311243712,1704991843652,-290.74991982,0.00039954,15]
[311243713,1704991843661,-216.20611013,0.00039956,15]
[311243714,1704991843670,-4727.53822802,0.00039956,15]
[311243715,1704991843680,-2757.730633,0.00039956,15]
[311243716,1704991843689,-216.20611013,0.00039956,15]
[311243717,1704991843698,-5419.61383014,0.00039957,10]
[311243718,1704991843709,-5419.61383014,0.00039957,10]
[311243719,1704991843718,-5515.46126604,0.00039957,15]
[311243720,1704991843727,-5419.61383014,0.00039957,10]
[311243721,1704991843736,-621.49006927,0.00039957,10]
[311243722,1704991843745,-2757.73063301,0.00039958,15]
[311243723,1704991843754,-4866.59201068,0.00039958,15]
[311243724,1704991843764,-4866.59201068,0.00039958,15]
[311243725,1704991843774,-8516.53601877,0.00039958,10]
[311243726,1704991843785,-4866.59201068,0.00039958,15]
[311243727,1704991843794,-4826.02860784,0.00039958,10]
[311243728,1704991843804,-216.20611013,0.00039958,15]
[311243729,1704991843813,-508.81235977,0.00039958,10]
[311243730,1704991843822,-1769.66982204,0.00039958,15]
[311243731,1704991843833,-4826.02860784,0.00039959,10]
[311243732,1704991843842,-581.49983971,0.00039959,10]
[311243733,1704991843851,-8273.19189911,0.00039959,10]
[311243734,1704991843863,-9652.05721565,0.0003996,10]
[311243735,1704991843872,-5419.61383014,0.0003996,10]
[311243736,1704991843881,-4727.53822802,0.0003996,15]
[311243737,1704991843890,-378.3606928,0.0003996,10]
[311243738,1704991843899,-200.0,0.00039961,10]
[311243740,1704991843908,-5419.61383014,0.00039961,10]
[311243743,1704991843918,-5419.61383014,0.00039961,10]
[311243745,1704991843927,-310.74503465,0.00039961,10]
[311243746,1704991843936,-488.31362585,0.00039961,10]
[311243748,1704991843945,-290.74991982,0.00039961,15]
[311243750,1704991843955,-4866.59201068,0.00039961,15]
[311243752,1704991843965,-332.28562265,0.00039962,15]
[311243754,1704991843974,-200.0,0.00039962,10]
[311243756,1704991843983,-200.0,0.00039963,10]
[311243757,1704991843993,-200.0,0.00039963,10]
[311243758,1704991844002,-9652.05721565,0.00039963,10]
[311243760,1704991844012,-2757.730633,0.00039964,15]
[311243761,1704991844021,-200.0,0.00039964,10]
[311243762,1704991844031,-1034.84969544,0.00039965,10]
[311243763,1704991844042,-200.0,0.00039965,10]
[311243765,1704991844051,-3096.92218861,0.00039965,15]
[311243767,1704991844061,-200.0,0.00039965,10]
[311243769,1704991844070,-310.74503465,0.00039965,10]
[311243771,1704991844083,-5419.61383014,0.00039966,10]
[311243773,1704991844093,-1034.84969544,0.00039967,10]
[311243776,1704991844102,-5419.61383014,0.00039967,10]
[311243778,1704991844111,-378.3606928,0.00039968,10]
[311243780,1704991844121,-581.49983971,0.00039968,10]
[311243782,1704991844130,-290.74991987,0.00039969,10]
[311243784,1704991844140,-200.0,0.00039969,10]
[311243785,1704991844149,-290.74991982,0.00039969,15]
[311243786,1704991844158,-3096.92218861,0.0003997,15]
[311243787,1704991844167,-279.03635758,0.0003997,15]
[311243788,1704991844177,-310.74503465,0.0003997,10]
[311243789,1704991844187,-621.49006927,0.0003997,10]
[311243790,1704991844197,-332.28562265,0.0003997,15]
[311243791,1704991844206,-2757.73063301,0.00039971,15]
[311243792,1704991844216,-591.34268307,0.00039971,15]
[311243793,1704991844226,-200.0,0.00039971,10]
[311243794,1704991844235,-200.0,0.00039972,10]
[311243795,1704991844246,-3096.92218861,0.00039972,15]
[311243796,1704991844256,-4826.02860784,0.00039972,10]
[311243797,1704991844266,-2757.730633,0.00039972,15]
[311243798,1704991844277,-4826.02860784,0.00039973,10]
[311243799,1704991844288,-4826.02860784,0.00039973,10]
[311243800,1704991844298,-591.34268307,0.00039973,15]
[311243801,1704991844307,-290.74991982,0.00039973,15]
[311243802,1704991844317,-200.0,0.00039973,10]
[311243803,1704991844328,-8516.53601877,0.00039973,10]
[311243804,1704991844339,-4866.59201068,0.00039973,15]
[311243805,1704991844351,-200.0,0.00039974,10]
[311243806,1704991844361,-3096.92218866,0.00039974,10]
[311243807,1704991844371,-200.0,0.00039974,10]
[311243808,1704991844382,-332.28562265,0.00039975,15]
[311243809,1704991844392,-200.0,0.00039975,10]
[311243810,1704991844403,-1034.84969544,0.00039976,10]
[311243811,1704991844412,-200.0,0.00039976,10]
[311243812,1704991844422,-355.1371824,0.00039976,15]
[311243813,1704991844431,-508.81235977,0.00039976,10]
[311243814,1704991844442,-200.0,0.00039977,15]
[311243815,1704991844452,-488.31362585,0.00039977,10]
[311243816,1704991844462,-290.74991982,0.00039977,15]
[311243817,1704991844472,-3096.92218866,0.00039977,10]
[311243818,1704991844481,-621.49006927,0.00039977,10]
[311243819,1704991844491,-200.0,0.00039977,15]
[311243820,1704991844501,-200.0,0.00039977,10]
[311243821,1704991844510,-581.49983971,0.00039977,10]
[311243822,1704991844520,-8273.19189911,0.00039977,10]
[311243823,1704991844529,-290.74991982,0.00039978,15]
[311243824,1704991844539,-8516.53601878,0.00039979,10]
[311243825,1704991844550,-200.0,0.00039979,15]
[311243826,1704991844560,-3096.92218866,0.00039979,10]
[311243827,1704991844569,-200.0,0.0003998,10]
[311243828,1704991844579,-200.0,0.0003998,15]
[311243829,1704991844588,-887.10072166,0.0003998,3]
[311243830,1704991844598,-8516.53601878,0.0003998,10]
[311243833,1704991844608,-756.92359206,0.0003998,3]
[311243835,1704991844618,-4826.02860784,0.0003998,10]
[311243837,1704991844628,-9652.05721565,0.0003998,10]
[311243839,1704991844638,-621.49006927,0.00039981,10]
[311243841,1704991844650,-310.74503465,0.00039981,10]
[311243843,1704991844660,-378.3606928,0.00039981,10]
[311243845,1704991844669,-290.74991987,0.00039981,10]
[311243847,1704991844679,-508.81235977,0.00039981,10]
[311243849,1704991844689,-200.0,0.00039981,10]
[311243850,1704991844699,-4826.02860784,0.00039981,10]
[311243853,1704991844710,-200.0,0.00039982,10]
[311243855,1704991844721,-200.0,0.00039982,10]
[311243857,1704991844731,-8273.19189911,0.00039983,10]
[311243858,1704991844742,-488.31362585,0.00039983,10]
[311243859,1704991844752,-488.31362585,0.00039985,10]
[311243860,1704991844762,-200.0,0.00039985,10]
[311243861,1704991844773,-290.74991987,0.00039985,10]
[311243862,1704991844784,-9652.05721565,0.00039985,10]
[311243863,1704991844794,-508.81235977,0.00039985,10]
[311243864,1704991844804,-290.74991987,0.00039986,10]
[311243865,1704991844813,-3096.92218866,0.00039986,10]
[311243866,1704991844823,-581.49983971,0.00039987,10]
[311243867,1704991844833,-500.0,0.00039987,3]
[311243868,1704991844844,-500.0,0.00039987,2]
[311243871,1704991844854,-498.14,0.00039987,2]
[311243873,1704991844866,-8516.53601878,0.00039988,10]
[311243875,1704991844876,-8273.19189911,0.00039989,10]
[311243877,1704991844885,-8986.78351045,0.00039998,4]
[311243879,1704991844894,-157.01517909,0.00039999,4]
[311243881,1704991844904,-3034.93816451,0.00039999,4]
[311243883,1704991844914,-155.0,0.00039999,4]
[311243885,1704991844923,-206.62196093,0.00039999,4]
[311243887,1704991844932,-200.0,0.00039999,15]
[311243889,1704991844941,-100000.0,0.0004,10]
[311243891,1704991844950,-223.65882795,0.0004,4]
[311243893,1704991844960,-47426.12218128,0.0004,15]
[311243895,1704991844969,-155.0,0.0004,2]
[311243897,1704991844979,-22008.0721351,0.0004,4]
[311243899,1704991844989,-18767.49045081,0.0004,2]
[311243901,1704991844999,-956.60549549,0.0004,2]
[311243903,1704991845009,-17927.90643813,0.0004,4]
[311243905,1704991845019,-255.0,0.0004,12]
[311243907,1704991845028,-2069.0,0.0004,2]
[311243909,1704991845038,-5085.0,0.0004,2]
[311243911,1704991845047,-210.38937704,0.0004,2]
[311243913,1704991845057,-350.0,0.0004,120]
[311243915,1704991845066,-400.0,0.0004,120]
[311243917,1704991845076,-262.97074533,0.00040011,4]
[311243919,1704991845086,-236.970236,0.00040077,2]
[311243921,1704991845095,-588.553653,0.00040077,2]
[311243923,1704991845105,-809.275204,0.00040077,2]
[311243925,1704991845114,-588.553653,0.00040077,2]
[311243927,1704991845124,-773.190221,0.00040077,2]
[311243929,1704991845133,-2953.92258961,0.0004017,14]
[311243931,1704991845142,-155.04448703,0.00040237,30]
[311243933,1704991845151,-6097.18,0.000403,7]
[311243935,1704991845161,-1593.56,0.000403,7]
[311243937,1704991845170,-848.01,0.00040349,15]
[311243939,1704991845180,-1522.6472,0.000404,2]
[311243941,1704991845189,-358.8359,0.000404,2]
[311243943,1704991845199,-18994.0891544,0.00040415,4]
[311243946,1704991845208,-153.84,0.0004043,2]
[311243948,1704991845218,-6560.99503908,0.000405,7]
[311243950,1704991845227,-150.0,0.00040546,3]
[311243952,1704991845237,-150.0,0.00040546,3]
[311243954,1704991845246,-58000.0,0.00040547,5]
[311243956,1704991845255,-58000.0,0.00040547,5]
[311243958,1704991845265,-198.285519,0.00040572,2]
[311243960,1704991845275,-236.970236,0.00040572,2]
[311243962,1704991845287,-588.553653,0.00040572,2]
[311243964,1704991845296,-809.275204,0.00040572,2]
[311243966,1704991845305,-588.553653,0.00040572,2]
[311243968,1704991845314,-773.190221,0.00040572,2]
[311243970,1704991845323,-27924.09031904,0.00040573,2]
[311243973,1704991845342,-11541.50618096,0.00040573,2]
[311243975,1704991845351,-46953.18144258,0.00040573,2]
[311244033,1704991845712,-207.51207034,0.00035369,4]
[311244036,1704991845721,-708.29557521,0.00035369,4]
[311244038,1704991845730,-459.08428919,0.00035999,2]
[311244041,1704991845740,-409.5044596,0.00035999,2]
[311244044,1704991845749,-373.16902013,0.00035999,2]
[311244047,1704991845758,-159.92958005,0.00037999,7]
[311244050,1704991845768,-275.45057352,0.00037999,7]
[311244053,1704991845777,-245.70267576,0.00037999,7]
[311244056,1704991845787,-1175.15065735,0.00039101,10]
[311244059,1704991845799,-285.50934265,0.00039101,10]
[311244062,1704991845808,-73.37900514,0.00040573,2]
[311244067,1704991845820,-12705.23470638,0.00040573,2]
[311244070,1704991845834,-667.66153255,0.00040573,2]
[311244073,1704991845846,-2599.9,0.00040573,2]
[311244076,1704991845857,-841.68,0.00040573,2]
[311244081,1704991845870,-378.40912458,0.00040573,2]
[311244084,1704991845882,-11579.5,0.00040573,2]
[311244107,1704991845988,-14835.12979926,0.00040573,2]
[311244120,1704991846044,-4576.8720906,0.00040573,2]
[311244123,1704991846056,-1734.74140987,0.00040573,2]
[311244128,1704991846068,-960.767779,0.00040573,2]
[311244131,1704991846081,-499.30190656,0.00040573,2]
[311244134,1704991846093,-1118.49059489,0.00040573,2]
[311244137,1704991846105,-475.75060859,0.00040573,2]
[311244140,1704991846115,-156.76141992,0.00040654,30]
[311244143,1704991846124,-539.84020963,0.0004069,4]
[311244148,1704991846134,-831.80625961,0.00040853,5]
[311244151,1704991846145,-155.0,0.00040857,4]
[311244154,1704991846154,-152.98731987,0.00040865,9]
[311244157,1704991846164,-7500.0,0.000409,7]
[311244160,1704991846174,-1699.94019912,0.000409,7]
[311244163,1704991846186,-990.00366092,0.000409,7]
[311244166,1704991846198,-274.27926531,0.000409,7]
[311244171,1704991846210,-1533.29370938,0.000409,7]
[311244178,1704991846246,-544.73,0.0003749,2]
[311244179,1704991846256,-1599.66316527,0.000409,7]
[311244193,1704991846452,-443.10683483,0.000409,7]
[311244216,1704991846662,-1150.45316517,0.000409,7]
[311244218,1704991846671,-72.14455539,0.00040974,4]
[311244221,1704991846683,-427.85544461,0.00040974,4]
[311244223,1704991846693,-112.27266039,0.00040982,4]
[311244225,1704991846705,-387.72733961,0.00040982,4]
[311244227,1704991846714,-383.57266039,0.00040987,14]
[311244250,1704991846919,-477.3121391,0.00023968,2]
[311244251,1704991846931,-2447.7598609,0.00023968,2]
[311244252,1704991846942,-167.8946825,0.00035368,4]
[311244253,1704991846952,-405.5491264,0.00035369,2]
[311244254,1704991846963,-660.98437271,0.00035369,4]
[311244255,1704991846972,-1776.65138323,0.00039399,4]
[311244256,1704991846989,-6485.73576795,0.00039399,4]
[311244257,1704991846999,-218.69927682,0.00039399,4]
[311244259,1704991847009,-506.12344043,0.00039979,4]
[311244260,1704991847019,-330.23422484,0.00039979,4]
[311244261,1704991847031,-499.99,0.0004069,2]
[311244262,1704991847042,-116.42733961,0.00040987,14]
[311244264,1704991847052,-500.0,0.00040987,5]
[311244266,1704991847062,-500.0,0.00040991,4]
[311244268,1704991847071,-390.82576445,0.00040997,4]
[311244269,1704991847081,-236.42010776,0.00040997,2]
[311244272,1704991847090,-2310.05752343,0.00040998,4]
[311244273,1704991847100,-734.67894374,0.00040998,4]
[311244276,1704991847110,-100000.0,0.00041,11]
[311244277,1704991847119,-612.47353791,0.00041,18]
[311244280,1704991847128,-2500.0,0.00041,6]
[311244282,1704991847139,-500.0,0.00041,4]
[311244284,1704991847149,-1294.74,0.00041,4]
[311244286,1704991847158,-1294.74,0.00041,4]
[311244288,1704991847168,-1294.74,0.00041,4]
[311244290,1704991847178,-1294.74,0.00041,4]
[311244292,1704991847187,-1294.74,0.00041,4]
[311244294,1704991847197,-1294.74,0.00041,4]
[311244296,1704991847206,-1294.74,0.00041,4]
[311244298,1704991847216,-1294.74,0.00041,4]
[311244300,1704991847225,-1294.74,0.00041,4]
[311244302,1704991847235,-1294.74,0.00041,4]
[311244304,1704991847244,-1294.74,0.00041,4]
[311244306,1704991847254,-1294.74,0.00041,4]
[311244308,1704991847263,-1294.74,0.00041,4]
[311244310,1704991847273,-1294.74,0.00041,4]
[311244312,1704991847283,-1294.74,0.00041,4]
[311244314,1704991847292,-1294.74,0.00041,4]
[311244316,1704991847301,-1294.74,0.00041,4]
[311244318,1704991847310,-1294.74,0.00041,4]
[311244320,1704991847319,-1294.74,0.00041,4]
[311244322,1704991847328,-1294.74,0.00041,4]
[311244324,1704991847337,-8824.68108968,0.00041061,4]
[311244326,1704991847346,-158.52993675,0.00041061,4]
[311244328,1704991847356,-374.64413116,0.00041061,4]
[311244330,1704991847365,-262.94748596,0.00041061,4]
[311244332,1704991847374,-627.79851458,0.00041061,4]
[311244334,1704991847383,-210.54949407,0.00041061,4]
[311244336,1704991847392,-252.23869713,0.00041061,4]
[311244338,1704991847403,-158.37838692,0.00041061,4]
[311244340,1704991847412,-5323.58330581,0.00041061,4]
[311244341,1704991847421,-188.34739051,0.00041061,4]
[311244342,1704991847430,-195.70065275,0.00041061,4]
[311244343,1704991847439,-164.13920204,0.00041061,4]
[311244344,1704991847449,-481.70312548,0.00041061,4]
[311244345,1704991847458,-155.0,0.00041061,4]
[311244346,1704991847468,-156.02860918,0.00041061,4]
[311244347,1704991847476,-155.96495879,0.00041061,4]
[311244348,1704991847486,-485.37327303,0.00041061,4]
[311244349,1704991847495,-155.0,0.00041061,4]
[311244350,1704991847504,-214.8965107,0.00041061,4]
[311244351,1704991847513,-155.49234819,0.00041061,4]
[311244352,1704991847523,-155.0,0.00041061,4]
[311244353,1704991847533,-319.90412468,0.00041061,2]
[311244354,1704991847542,-1278.28133876,0.00041061,2]
[311244355,1704991847552,-155.0,0.00041062,4]
[311244356,1704991847561,-155.23119929,0.00041062,4]
[311244357,1704991847570,-416.9599042,0.00041062,4]
[311244358,1704991847580,-270.489896,0.00041063,4]
[311244359,1704991847589,-461.6883313,0.00041063,4]
[311244360,1704991847598,-198.82869337,0.00041063,4]
[311244361,1704991847607,-276.45356326,0.00041063,4]
[311244362,1704991847617,-519.54844331,0.00041063,4]
[311244363,1704991847626,-155.0,0.00041063,2]
[311244364,1704991847636,-196.03634305,0.00041063,4]
[311244365,1704991847646,-156.3401269,0.00041063,4]
[311244366,1704991847656,-3817.37292127,0.00041063,4]
[311244367,1704991847665,-217.57369478,0.00041063,4]
[311244368,1704991847675,-447.22636747,0.00041063,4]
[311244369,1704991847685,-155.0,0.00041063,4]
[311244370,1704991847694,-530.22896622,0.00041063,4]
[311244371,1704991847703,-207.82033567,0.00041063,4]
[311244372,1704991847713,-156.83285728,0.00041063,4]
[311244373,1704991847723,-159.60119728,0.00041063,4]
[311244374,1704991847732,-155.6718047,0.00041063,4]
[311244375,1704991847742,-212.95665745,0.00041064,4]
[311244376,1704991847752,-14989.17868717,0.00041064,4]
[311244377,1704991847762,-206953.17869624,0.00041064,4]
[311244378,1704991847774,-101413.7545975,0.00041064,4]
[311244379,1704991847785,-279.55095249,0.00041066,4]
[311244380,1704991847794,-171.29294843,0.00041066,4]
[311244381,1704991847803,-815.25164256,0.00041066,4]
[311244382,1704991847815,-155.0,0.00041066,4]
[311244383,1704991847824,-236.970236,0.00041067,2]
[311244384,1704991847837,-588.553653,0.00041067,2]
[311244385,1704991847846,-809.275204,0.00041067,2]
[311244387,1704991847855,-588.553653,0.00041067,2]
[311244389,1704991847865,-773.190221,0.00041067,2]
[311244391,1704991847875,-400.0,0.00041068,120]
[311244393,1704991847884,-150.0,0.00041096,2]
[311244395,1704991847893,-180.0,0.00041096,2]
[311244398,1704991847902,-2845.74773785,0.00041119,2]
[311244400,1704991847912,-156.76141992,0.00041198,30]
[311244402,1704991847922,-350.0,0.00041233,120]
[311244404,1704991847931,-1713.49,0.000413,7]
[311244406,1704991847941,-2953.92258961,0.00041353,15]
[311244408,1704991847949,-198.285519,0.00041561,30]
[311244411,1704991847970,-236.970236,0.00041561,30]
[311244413,1704991847980,-588.553653,0.00041561,30]
[311244415,1704991847990,-809.275204,0.00041561,30]
[311244417,1704991847999,-588.553653,0.00041561,30]
[311244418,1704991848009,-773.190221,0.00041561,30]
[311244420,1704991848018,-6839.50522379,0.0004158,2]
[311244422,1704991848028,-153.84,0.00041585,2]
[311244424,1704991848039,-167.0,0.00041585,2]
[311244426,1704991848047,-6097.18,0.000416,7]
[311244428,1704991848057,-1593.56,0.000416,7]
[311244431,1704991848066,-666.0,0.0004178,2]
[311244433,1704991848075,-1067.83534181,0.00041978,10]
[311244435,1704991848085,-500.0,0.00041987,17]
[311244437,1704991848094,-500.0,0.00041987,7]
[311244439,1704991848103,-100000.0,0.00042,12]
[311244441,1704991848112,-1589.58652979,0.00042,40]
[311244443,1704991848122,-5289.999999,0.00042,2]
[311244444,1704991848133,-200.0,0.00042,2]
[311244445,1704991848143,-368.9500323,0.00042,7]
[311244446,1704991848152,-500.0,0.00042,7]
[311244447,1704991848161,-500.0,0.00042,7]
[311244448,1704991848171,-306.18539872,0.00042,7]
[311244449,1704991848180,-500.0,0.00042,7]
[311244450,1704991848189,-275.9194713,0.00042,7]
[311244451,1704991848199,-152.98731987,0.00042058,14]
[311244452,1704991848208,-400.0,0.00042137,120]
[311244454,1704991848217,-6097.18,0.000422,7]
[311244456,1704991848226,-1593.56,0.000422,7]
[311244458,1704991848236,-498.14,0.00042251,2]
[311244460,1704991848246,-1000.0,0.00042266,2]
[311244462,1704991848255,-1713.49,0.000423,7]
[311244464,1704991848266,-160.15937549,0.00042341,30]
[311244466,1704991848275,-831.80625961,0.00042432,5]
[311244468,1704991848286,-155.04448703,0.00042434,30]
[311244470,1704991848297,-500.0,0.00042466,2]
[311244472,1704991848306,-350.0,0.00042466,120]
[311244474,1704991848316,-150.0,0.00042466,2]
[311244476,1704991848325,-155.04448703,0.00042498,30]
[311244478,1704991848334,-1819.05,0.00042498,5]
[311244480,1704991848343,-2953.92258961,0.00042535,17]
[311244482,1704991848353,-1294.74,0.000427,4]
[311244484,1704991848362,-1294.74,0.000427,4]
[311244486,1704991848372,-1294.74,0.000427,4]
[311244488,1704991848381,-1294.74,0.000427,4]
[311244490,1704991848392,-1294.74,0.000427,4]
[311244491,1704991848401,-1294.74,0.000427,4]
[311244492,1704991848411,-1294.74,0.000427,4]
[311244494,1704991848420,-1294.74,0.000427,4]
[311244496,1704991848430,-1294.74,0.000427,4]
[311244498,1704991848439,-1294.74,0.000427,4]
[311244500,1704991848448,-1294.74,0.000427,4]
[311244502,1704991848458,-1294.74,0.000427,4]
[311244504,1704991848467,-1294.74,0.000427,4]
[311244506,1704991848476,-1294.74,0.000427,4]
[311244508,1704991848486,-1294.74,0.000427,4]
[311244510,1704991848496,-1294.74,0.000427,4]
[311244512,1704991848505,-1294.74,0.000427,4]
[311244514,1704991848514,-1294.74,0.000427,4]
[311244517,1704991848523,-1294.74,0.000427,4]
[311244519,1704991848533,-1294.74,0.000427,4]
[311244521,1704991848542,-1500.0,0.00042736,2]
[311244523,1704991848551,-153.84,0.0004274,2]
[311244525,1704991848560,-319.8949739,0.00042808,2]
[311244535,1704991848642,-205.0,0.00042842,10]
[311244537,1704991848651,-204.0,0.00042842,10]
[311244539,1704991848660,-150.0,0.000429,34]
[311244541,1704991848669,-6097.18,0.000429,7]
[311244543,1704991848678,-1593.56,0.000429,7]
[311244545,1704991848688,-500.0,0.00042987,20]
[311244547,1704991848697,-500.0,0.00042987,9]
[311244550,1704991848707,-150.0,0.00042999,4]
[311244552,1704991848715,-150.0,0.00042999,4]
[311244554,1704991848724,-100000.0,0.00043,13]
[311244556,1704991848733,-300.0,0.00043,21]
[311244558,1704991848742,-41000.00001319,0.00043,4]
[311244560,1704991848751,-3000.0,0.00043,90]
[311244562,1704991848760,-1000.0,0.00043,120]
[311244564,1704991848774,-1000.0,0.00043,2]
[311244566,1704991848783,-637.0,0.00043,2]
[311244568,1704991848792,-150.0,0.00043,90]
[311244570,1704991848801,-1500.0,0.0004304,2]
[311244572,1704991848810,-150.0,0.00043067,30]
[311244574,1704991848819,-150.0,0.0004313,120]
[311244576,1704991848829,-578.754,0.00043183,2]
[311244578,1704991848841,-834.0,0.00043183,2]
[311244580,1704991848850,-1234.0,0.00043183,2]
[311244582,1704991848859,-865.944,0.00043183,2]
[311244584,1704991848868,-1930.0,0.00043183,2]
[311244586,1704991848877,-318.0,0.00043183,2]
[311244588,1704991848887,-214.0,0.00043183,2]
[311244590,1704991848896,-250.0,0.00043183,2]
[311244592,1704991848905,-2269.0,0.00043183,2]
[311244594,1704991848914,-8080.0,0.00043183,2]
[311244596,1704991848924,-150.425,0.00043183,2]
[311244598,1704991848933,-223.0,0.00043183,2]
[311244600,1704991848942,-150.0,0.00043183,2]
[311244602,1704991848952,-2273.26992185,0.00043183,2]
[311244605,1704991848969,-1595.59500926,0.00043183,2]
[311244623,1704991849134,-15804.13506889,0.00043183,2]
[311244625,1704991849144,-150.0,0.00043183,2]